fUST/lending_fUST_20240227
["ID","MTS","AMOUNT","RATE_DAILY","PERIOD"]
[315437478,1709037039719,-500.0,0.00019178,2]
[315437479,1709037039728,-500.0,0.00019178,2]
[315437480,1709037039737,-500.0,0.00019178,2]
[315437481,1709037039746,-10759.76,0.00019178,2]
[315437482,1709037039755,-500.0,0.00019178,2]
[315437483,1709037039764,-443.10422866,0.00019178,2]
[315437484,1709037039773,-830.13,0.00019178,2]
[315437485,1709037039782,-401.70891154,0.00019178,2]
[315437486,1709037039791,-500.0,0.00019178,2]
[315437487,1709037039800,-500.47393803,0.00019178,2]
[315437488,1709037039809,-500.0,0.00019178,2]
[315437489,1709037039818,-500.0,0.00019178,2]
[315437490,1709037039827,-500.0,0.00019178,2]
[315437491,1709037039948,-500.0,0.00019178,2]
[315437492,1709037039958,-549.59387891,0.00019178,2]
[315437493,1709037039967,-500.0,0.00019178,2]
[315437494,1709037039976,-500.0,0.00019178,2]
[315437495,1709037039985,-4417.94,0.00019178,2]
[315437496,1709037039995,-2020.3,0.00019178,2]
[315437497,1709037040004,-500.0,0.00019178,2]
[315437498,1709037040013,-500.0,0.00019178,2]
[315437499,1709037040022,-1400.15,0.00019178,2]
[315437500,1709037040031,-500.0,0.00019178,2]
[315437501,1709037040041,-500.0,0.00019178,2]
[315437502,1709037040050,-503.20835864,0.00019178,2]
[315437503,1709037040060,-500.0,0.00019178,2]
[315437504,1709037040069,-500.0,0.00019178,2]
[315437505,1709037040078,-593.2402925,0.00019178,2]
[315437506,1709037040088,-584.54,0.00019178,2]
[315437507,1709037040098,-500.0,0.00019178,2]
[315437508,1709037040106,-654.62,0.00019178,2]
[315437509,1709037040116,-236.25628183,0.00019178,2]
[315437510,1709037040125,-5040.42,0.00019178,2]
[315437512,1709037040136,-500.0,0.00019178,2]
[315437513,1709037040146,-500.0,0.00019178,2]
[315437514,1709037040155,-500.0,0.00019178,2]
[315437515,1709037040164,-500.0,0.00019178,2]
[315437516,1709037040175,-500.0,0.00019178,2]
[315437517,1709037040185,-500.0,0.00019178,2]
[315437518,1709037040194,-500.0,0.00019178,2]
[315437519,1709037040203,-500.0,0.00019178,2]
[315437520,1709037040212,-209.21007188,0.00019178,2]
[315437521,1709037040221,-2147.11,0.00019178,2]
[315437522,1709037040232,-500.0,0.00019178,2]
[315437523,1709037040248,-164.67083156,0.00019178,2]
[315437524,1709037040262,-500.0,0.00019178,2]
[315437525,1709037040272,-500.0,0.00019178,2]
[315437526,1709037040282,-500.0,0.00019178,2]
[315437527,1709037040293,-500.0,0.00019178,2]
[315437528,1709037040303,-20732.91,0.00019178,2]
[315437529,1709037040313,-500.0,0.00019178,2]
[315437530,1709037040322,-500.0,0.00019178,2]
[315437531,1709037040332,-500.0,0.00019178,2]
[315437532,1709037040342,-500.0,0.00019178,2]
[315437533,1709037040352,-500.0,0.00019178,2]
[315437534,1709037040362,-500.0,0.00019178,2]
[315437535,1709037040372,-500.0,0.00019178,2]
[315437536,1709037040381,-838.05,0.00019178,2]
[315437537,1709037040391,-838.05,0.00019178,2]
[315437538,1709037040401,-500.0,0.00019178,2]
[315437539,1709037040411,-838.05,0.00019178,2]
[315437540,1709037040421,-838.05,0.00019178,2]
[315437541,1709037040430,-838.05,0.00019178,2]
[315437542,1709037040440,-500.0,0.00019178,2]
[315437543,1709037040450,-500.0,0.00019178,2]
[315437544,1709037040459,-480.04806816,0.00019178,2]
[315437545,1709037040469,-500.0,0.00019178,2]
[315437546,1709037040480,-500.0,0.00019178,2]
[315437547,1709037040490,-500.0,0.00019178,2]
[315437548,1709037040500,-500.0,0.00019178,2]
[315437549,1709037040510,-500.0,0.00019178,2]
[315437550,1709037040519,-500.0,0.00019178,2]
[315437551,1709037040528,-1840.58,0.00019178,2]
[315437552,1709037040538,-500.0,0.00019178,2]
[315437553,1709037040547,-500.0,0.00019178,2]
[315437554,1709037040557,-500.0,0.00019178,2]
[315437555,1709037040567,-500.0,0.00019178,2]
[315437556,1709037040576,-320.15175574,0.00019178,2]
[315437557,1709037040586,-500.0,0.00019178,2]
[315437558,1709037040595,-500.0,0.00019178,2]
[315437559,1709037040604,-500.0,0.00019178,2]
[315437560,1709037040614,-3582.95,0.00019178,2]
[315437561,1709037040623,-501.378692,0.00019178,2]
[315437562,1709037040632,-4076.94,0.00019178,2]
[315437563,1709037040642,-1581.45,0.00019178,2]
[315437564,1709037040651,-661.79,0.00019178,2]
[315437565,1709037040662,-500.0,0.00019178,2]
[315437566,1709037040671,-500.0,0.00019178,2]
[315437567,1709037040680,-1617.47,0.00019178,2]
[315437568,1709037040690,-2645.29,0.00019178,2]
[315437569,1709037040701,-182.29292872,0.00019178,2]
[315437570,1709037040710,-2564.92,0.00019178,2]
[315437571,1709037040720,-1501.19,0.00019178,2]
[315437572,1709037040730,-500.0,0.00019178,2]
[315437573,1709037040739,-500.0,0.00019178,2]
[315437574,1709037040749,-500.0,0.00019178,2]
[315437575,1709037040758,-7314.37,0.00019178,2]
[315437576,1709037040768,-500.0,0.00019178,2]
[315437577,1709037040780,-500.27404044,0.00019178,2]
[315437578,1709037040812,-155.0,0.00019178,2]
[315437579,1709037040821,-19085.58,0.00019178,2]
[315437580,1709037040830,-941.84,0.00019178,2]
[315437581,1709037040840,-500.0,0.00019178,2]
[315437582,1709037040850,-5075.42,0.00019178,2]
[315437583,1709037040859,-773.62,0.00019178,2]
[315437584,1709037040869,-694.82180753,0.00019178,2]
[315437586,1709037040878,-166.638562,0.00019178,2]
[315437588,1709037040888,-166.666666,0.00019178,2]
[315437589,1709037040898,-175.995247,0.00019178,2]
[315437590,1709037040907,-430.973088,0.00019178,4]
[315437591,1709037040916,-500.0,0.00019232,2]
[315437592,1709037040925,-500.0,0.00019287,2]
[315437593,1709037040935,-359.9410765,0.000193,2]
[315437595,1709037040944,-500.0,0.00019342,2]
[315437597,1709037040954,-675.14685584,0.00019352,2]
[315437598,1709037040963,-500.0,0.00019396,2]
[315437599,1709037040973,-153.0,0.000194,2]
[315437600,1709037040984,-500.0,0.00019451,2]
[315437601,1709037040994,-500.0,0.00019451,2]
[315437603,1709037041004,-500.0,0.00019451,2]
[315437604,1709037041013,-500.0,0.00019451,2]
[315437606,1709037041022,-500.0,0.00019451,2]
[315437608,1709037041031,-500.0,0.00019451,2]
[315437609,1709037041043,-500.0,0.00019451,2]
[315437610,1709037041052,-838.05,0.00019451,2]
[315437611,1709037041061,-838.05,0.00019451,2]
[315437612,1709037041071,-838.05,0.00019451,2]
[315437614,1709037041081,-500.0,0.00019452,2]
[315437616,1709037041091,-596.36,0.00019452,2]
[315437618,1709037041100,-500.0,0.00019452,2]
[315437620,1709037041110,-500.0,0.00019452,2]
[315437622,1709037041119,-500.0,0.00019452,2]
[315437623,1709037041128,-500.0,0.00019452,2]
[315437624,1709037041138,-705.92,0.00019452,2]
[315437625,1709037041147,-500.0,0.00019452,2]
[315437626,1709037041156,-507.42166358,0.00019452,2]
[315437627,1709037041166,-500.0,0.00019452,2]
[315437628,1709037041175,-500.0,0.00019452,2]
[315437629,1709037041185,-637.53,0.00019452,2]
[315437630,1709037041194,-500.0,0.00019452,2]
[315437631,1709037041203,-500.0,0.00019452,2]
[315437632,1709037041213,-500.0,0.00019452,2]
[315437633,1709037041222,-500.0,0.00019452,2]
[315437634,1709037041233,-500.0,0.00019452,2]
[315437635,1709037041243,-500.0,0.00019452,2]
[315437636,1709037041253,-500.0,0.00019452,2]
[315437637,1709037041263,-151.0,0.00019452,2]
[315437638,1709037041272,-606.48,0.00019452,2]
[315437639,1709037041282,-500.0,0.00019452,2]
[315437640,1709037041291,-500.0,0.00019452,2]
[315437641,1709037041301,-373.72715939,0.00019452,2]
[315437642,1709037041310,-1000.0,0.00019452,2]
[315437643,1709037041320,-843.57,0.00019452,2]
[315437644,1709037041330,-1392.0,0.00019452,2]
[315437645,1709037041339,-890.02,0.00019452,2]
[315437646,1709037041348,-500.0,0.00019452,2]
[315437647,1709037041358,-500.0,0.00019452,2]
[315437648,1709037041367,-500.0,0.00019452,2]
[315437649,1709037041377,-502.13809935,0.00019452,2]
[315437650,1709037041387,-521.05304832,0.00019452,2]
[315437651,1709037041397,-500.0,0.00019452,2]
[315437652,1709037041406,-500.0,0.00019452,2]
[315437653,1709037041415,-500.0,0.00019452,2]
[315437654,1709037041425,-500.0,0.00019452,2]
[315437655,1709037041435,-500.0,0.00019452,2]
[315437656,1709037041445,-500.0,0.00019452,2]
[315437657,1709037041455,-500.0,0.00019452,2]
[315437658,1709037041464,-507.90038399,0.00019452,2]
[315437659,1709037041475,-501.71930194,0.00019452,2]
[315437660,1709037041486,-162.83762222,0.00019452,2]
[315437661,1709037041495,-500.67341331,0.00019452,2]
[315437662,1709037041505,-268.6099061,0.00019452,2]
[315437663,1709037041514,-500.0,0.00019452,2]
[315437664,1709037041524,-500.0,0.00019452,2]
[315437665,1709037041534,-500.0,0.00019452,2]
[315437666,1709037041543,-507.34717386,0.00019452,2]
[315437667,1709037041552,-1707.42,0.00019452,2]
[315437668,1709037041562,-500.0,0.00019452,2]
[315437669,1709037041571,-500.0,0.00019452,2]
[315437670,1709037041583,-521.78939552,0.00019452,2]
[315437671,1709037041593,-500.0,0.00019452,2]
[315437672,1709037041603,-500.0,0.00019452,2]
[315437673,1709037041612,-237.30620827,0.00019452,2]
[315437675,1709037041622,-1675.88,0.00019452,2]
[315437676,1709037041631,-500.0,0.00019452,2]
[315437677,1709037041640,-500.0,0.00019452,2]
[315437678,1709037041649,-500.0,0.00019452,2]
[315437679,1709037041658,-500.0,0.00019452,2]
[315437680,1709037041667,-500.0,0.00019452,2]
[315437681,1709037041677,-500.0,0.00019452,2]
[315437682,1709037041686,-395.16181797,0.00019452,2]
[315437683,1709037041695,-376.53396052,0.00019452,2]
[315437684,1709037041704,-501.19562815,0.00019452,2]
[315437685,1709037041714,-500.0,0.00019452,2]
[315437686,1709037041723,-500.0,0.00019452,2]
[315437687,1709037041734,-500.0,0.00019452,2]
[315437688,1709037041743,-500.0,0.00019452,2]
[315437689,1709037041753,-868.11,0.00019452,2]
[315437690,1709037041762,-500.0,0.00019452,2]
[315437691,1709037041772,-500.0,0.00019452,2]
[315437692,1709037041782,-500.0,0.00019452,2]
[315437693,1709037041791,-500.0,0.00019452,2]
[315437694,1709037041801,-500.0,0.00019452,2]
[315437695,1709037041811,-501.3868524,0.00019452,2]
[315437696,1709037041820,-500.0,0.00019452,2]
[315437697,1709037041829,-500.0,0.00019452,2]
[315437698,1709037041839,-500.0,0.00019452,2]
[315437699,1709037041848,-500.53281888,0.00019452,2]
[315437700,1709037041858,-500.0,0.00019452,2]
[315437701,1709037041867,-738.24,0.00019452,2]
[315437702,1709037041876,-500.0,0.00019452,2]
[315437703,1709037041885,-500.0,0.00019452,2]
[315437704,1709037041895,-501.62472493,0.00019452,2]
[315437705,1709037041905,-500.0,0.00019452,2]
[315437706,1709037041915,-3469.94,0.00019452,2]
[315437707,1709037041924,-500.0,0.00019452,2]
[315437708,1709037041934,-500.0,0.00019452,2]
[315437709,1709037041944,-500.0,0.00019452,2]
[315437710,1709037041954,-500.0,0.00019452,2]
[315437711,1709037041964,-441.60606939,0.00019452,2]
[315437712,1709037041973,-500.0,0.00019452,2]
[315437713,1709037041985,-2682.36,0.00019452,2]
[315437714,1709037041994,-500.0,0.00019452,2]
[315437715,1709037042004,-500.0,0.00019452,2]
[315437716,1709037042013,-500.0,0.00019452,2]
[315437717,1709037042023,-1938.62,0.00019452,2]
[315437718,1709037042032,-500.0,0.00019452,2]
[315437719,1709037042043,-500.0,0.00019452,2]
[315437720,1709037042053,-500.0,0.00019452,2]
[315437721,1709037042063,-335.919287,0.00019452,2]
[315437722,1709037042073,-730.05,0.00019452,2]
[315437723,1709037042082,-500.0,0.00019452,2]
[315437724,1709037042093,-500.0,0.00019452,2]
[315437725,1709037042103,-2409.39,0.00019452,2]
[315437726,1709037042112,-500.0,0.00019452,2]
[315437727,1709037042121,-500.0,0.00019452,2]
[315437728,1709037042132,-1235.11,0.00019452,2]
[315437729,1709037042142,-500.0,0.00019452,2]
[315437730,1709037042153,-500.0,0.00019452,2]
[315437731,1709037042162,-500.0,0.00019452,2]
[315437732,1709037042172,-500.0,0.00019452,2]
[315437733,1709037042181,-500.0,0.00019452,2]
[315437734,1709037042191,-10759.76,0.00019452,2]
[315437735,1709037042201,-500.0,0.00019452,2]
[315437736,1709037042211,-830.13,0.00019452,2]
[315437737,1709037042221,-500.0,0.00019452,2]
[315437738,1709037042232,-500.0,0.00019452,2]
[315437739,1709037042241,-501.98121851,0.00019452,2]
[315437740,1709037042251,-500.0,0.00019452,2]
[315437741,1709037042261,-500.0,0.00019452,2]
[315437742,1709037042270,-504.40324197,0.00019452,2]
[315437743,1709037042280,-4417.94,0.00019452,2]
[315437744,1709037042291,-500.0,0.00019452,2]
[315437746,1709037042389,-2020.3,0.00019452,2]
[315437747,1709037042411,-500.0,0.00019452,2]
[315437749,1709037042421,-1400.15,0.00019452,2]
[315437752,1709037042430,-500.0,0.00019452,2]
[315437754,1709037042439,-226.05511992,0.00019452,2]
[315437756,1709037042449,-500.0,0.00019452,2]
[315437758,1709037042458,-500.0,0.00019452,2]
[315437760,1709037042468,-584.54,0.00019452,2]
[315437761,1709037042480,-500.0,0.00019452,2]
[315437763,1709037042489,-654.62,0.00019452,2]
[315437765,1709037042499,-5040.42,0.00019452,2]
[315437767,1709037042508,-500.0,0.00019452,2]
[315437768,1709037042518,-601.31095344,0.00019452,2]
[315437769,1709037042527,-500.0,0.00019452,2]
[315437770,1709037042537,-500.0,0.00019452,2]
[315437771,1709037042546,-500.0,0.00019452,2]
[315437773,1709037042555,-500.0,0.00019452,2]
[315437775,1709037042565,-500.0,0.00019452,2]
[315437777,1709037042574,-2147.11,0.00019452,2]
[315437779,1709037042583,-500.0,0.00019452,2]
[315437780,1709037042592,-500.0,0.00019452,2]
[315437781,1709037042602,-500.0,0.00019452,2]
[315437782,1709037042611,-500.0,0.00019452,2]
[315437783,1709037042621,-500.0,0.00019452,2]
[315437784,1709037042631,-20732.91,0.00019452,2]
[315437785,1709037042641,-500.0,0.00019452,2]
[315437787,1709037042650,-500.0,0.00019452,2]
[315437788,1709037042660,-451.77238634,0.00019452,2]
[315437789,1709037042670,-500.0,0.00019452,2]
[315437791,1709037042680,-500.0,0.00019452,2]
[315437793,1709037042690,-500.0,0.00019452,2]
[315437794,1709037042699,-501.17206482,0.00019452,2]
[315437795,1709037042708,-500.0,0.00019452,2]
[315437796,1709037042718,-500.0,0.00019452,2]
[315437797,1709037042728,-500.0,0.00019452,2]
[315437798,1709037042738,-500.0,0.00019452,2]
[315437800,1709037042748,-500.0,0.00019452,2]
[315437801,1709037042757,-1840.58,0.00019452,2]
[315437802,1709037042766,-524.3336593,0.00019452,2]
[315437803,1709037042775,-500.0,0.00019452,2]
[315437804,1709037042785,-500.0,0.00019452,2]
[315437805,1709037042794,-500.0,0.00019452,2]
[315437807,1709037042803,-500.0,0.00019452,2]
[315437808,1709037042812,-500.0,0.00019452,2]
[315437809,1709037042821,-500.0,0.00019452,2]
[315437810,1709037042830,-3582.95,0.00019452,2]
[315437811,1709037042841,-4076.94,0.00019452,2]
[315437812,1709037042850,-1581.45,0.00019452,2]
[315437814,1709037042859,-661.79,0.00019452,2]
[315437815,1709037042868,-500.0,0.00019452,2]
[315437816,1709037042878,-500.0,0.00019452,2]
[315437818,1709037042887,-1617.47,0.00019452,2]
[315437819,1709037042897,-2645.29,0.00019452,2]
[315437820,1709037042907,-2564.92,0.00019452,2]
[315437821,1709037042917,-1501.19,0.00019452,2]
[315437822,1709037042926,-500.0,0.00019452,2]
[315437823,1709037042935,-500.0,0.00019452,2]
[315437824,1709037042944,-500.0,0.00019452,2]
[315437825,1709037042953,-7314.37,0.00019452,2]
[315437826,1709037042963,-501.00933044,0.00019452,2]
[315437827,1709037042972,-19085.58,0.00019452,2]
[315437828,1709037042982,-941.84,0.00019452,2]
[315437829,1709037042991,-500.0,0.00019452,2]
[315437831,1709037043001,-5075.42,0.00019452,2]
[315437833,1709037043010,-773.62,0.00019452,2]
[315437835,1709037043019,-153.0,0.000195,2]
[315437837,1709037043029,-153.0,0.000195,2]
[315437838,1709037043038,-153.0,0.000195,2]
[315437840,1709037043048,-486.79569354,0.00019506,2]
[315437842,1709037043061,-675.14685582,0.00019573,2]
[315437844,1709037043070,-664.36532194,0.00019588,2]
[315437846,1709037043079,-2606.3172697,0.00019626,2]
[315437848,1709037043088,-166.666666,0.00019627,2]
[315437850,1709037043098,-500.0,0.00019725,2]
[315437852,1709037043106,-500.0,0.00019725,2]
[315437854,1709037043115,-500.0,0.00019725,2]
[315437856,1709037043125,-500.0,0.00019725,2]
[315437858,1709037043136,-838.05,0.00019725,2]
[315437861,1709037043146,-838.05,0.00019725,2]
[315437863,1709037043155,-838.05,0.00019725,2]
[315437865,1709037043165,-838.05,0.00019725,2]
[315437867,1709037043174,-500.0,0.00019726,2]
[315437869,1709037043184,-596.36,0.00019726,2]
[315437872,1709037043193,-500.0,0.00019726,2]
[315437875,1709037043203,-500.0,0.00019726,2]
[315437878,1709037043212,-500.0,0.00019726,2]
[315437880,1709037043221,-705.92,0.00019726,2]
[315437882,1709037043230,-500.0,0.00019726,2]
[315437885,1709037043240,-500.0,0.00019726,2]
[315437889,1709037043249,-500.0,0.00019726,2]
[315437892,1709037043259,-637.53,0.00019726,2]
[315437894,1709037043268,-500.0,0.00019726,2]
[315437897,1709037043277,-500.0,0.00019726,2]
[315437901,1709037043287,-500.0,0.00019726,2]
[315437904,1709037043296,-292.53384056,0.00019726,2]
[315437907,1709037043305,-606.48,0.00019726,2]
[315437910,1709037043314,-500.0,0.00019726,2]
[315437912,1709037043324,-228.67540805,0.00019726,2]
[315437914,1709037043333,-160.72308855,0.00019726,2]
[315437916,1709037043342,-843.57,0.00019726,2]
[315437918,1709037043352,-1392.0,0.00019726,2]
[315437920,1709037043361,-890.02,0.00019726,2]
[315437921,1709037043371,-500.0,0.00019726,2]
[315437923,1709037043380,-500.0,0.00019726,2]
[315437925,1709037043389,-500.0,0.00019726,2]
[315437927,1709037043398,-500.0,0.00019726,2]
[315437929,1709037043407,-500.0,0.00019726,2]
[315437931,1709037043416,-500.0,0.00019726,2]
[315437933,1709037043425,-500.0,0.00019726,2]
[315437935,1709037043435,-500.0,0.00019726,2]
[315437936,1709037043444,-500.0,0.00019726,2]
[315437937,1709037043453,-500.0,0.00019726,2]
[315437938,1709037043462,-501.75694679,0.00019726,2]
[315437939,1709037043471,-500.0,0.00019726,2]
[315437940,1709037043481,-1707.42,0.00019726,2]
[315437941,1709037043490,-500.0,0.00019726,2]
[315437942,1709037043499,-500.0,0.00019726,2]
[315437943,1709037043508,-500.0,0.00019726,2]
[315437944,1709037043517,-500.0,0.00019726,2]
[315437945,1709037043526,-1675.88,0.00019726,2]
[315437946,1709037043535,-500.0,0.00019726,2]
[315437947,1709037043544,-500.0,0.00019726,2]
[315437948,1709037043553,-500.0,0.00019726,2]
[315437949,1709037043563,-354.29,0.00019726,2]
[315437950,1709037043572,-500.0,0.00019726,2]
[315437951,1709037043581,-500.0,0.00019726,2]
[315437952,1709037043590,-500.0,0.00019726,2]
[315437953,1709037043599,-500.0,0.00019726,2]
[315437954,1709037043608,-500.0,0.00019726,2]
[315437955,1709037043618,-500.0,0.00019726,2]
[315437956,1709037043627,-868.11,0.00019726,2]
[315437957,1709037043636,-500.0,0.00019726,2]
[315437958,1709037043645,-500.0,0.00019726,2]
[315437959,1709037043655,-500.0,0.00019726,2]
[315437960,1709037043664,-500.0,0.00019726,2]
[315437961,1709037043673,-500.0,0.00019726,2]
[315437962,1709037043682,-500.0,0.00019726,2]
[315437963,1709037043691,-500.0,0.00019726,2]
[315437964,1709037043700,-306.64800142,0.00019726,2]
[315437965,1709037043709,-500.0,0.00019726,2]
[315437966,1709037043718,-738.24,0.00019726,2]
[315437967,1709037043728,-500.0,0.00019726,2]
[315437968,1709037043737,-500.0,0.00019726,2]
[315437969,1709037043747,-500.0,0.00019726,2]
[315437970,1709037043756,-3469.94,0.00019726,2]
[315437971,1709037043765,-500.0,0.00019726,2]
[315437972,1709037043774,-500.0,0.00019726,2]
[315437973,1709037043783,-500.96626582,0.00019726,2]
[315437974,1709037043793,-500.0,0.00019726,2]
[315437975,1709037043803,-500.0,0.00019726,2]
[315437976,1709037043812,-2682.36,0.00019726,2]
[315437977,1709037043821,-526.19440207,0.00019726,2]
[315437978,1709037043830,-500.0,0.00019726,2]
[315437979,1709037043840,-1938.62,0.00019726,2]
[315437980,1709037043849,-500.0,0.00019726,2]
[315437981,1709037043857,-500.0,0.00019726,2]
[315437982,1709037043866,-500.0,0.00019726,2]
[315437983,1709037043876,-730.05,0.00019726,2]
[315437984,1709037043885,-581.55260075,0.00019726,2]
[315437985,1709037043894,-500.0,0.00019726,2]
[315437986,1709037043904,-2409.39,0.00019726,2]
[315437987,1709037043914,-500.0,0.00019726,2]
[315437988,1709037043922,-502.67690277,0.00019726,2]
[315437989,1709037043932,-1235.11,0.00019726,2]
[315437990,1709037043942,-302.1536889,0.00019726,2]
[315437991,1709037043951,-500.0,0.00019726,2]
[315437992,1709037043962,-500.0,0.00019726,2]
[315437993,1709037043971,-500.0,0.00019726,2]
[315437994,1709037043981,-500.0,0.00019726,2]
[315437995,1709037043991,-10759.76,0.00019726,2]
[315437996,1709037044000,-332.96266371,0.00019726,2]
[315437997,1709037044009,-830.13,0.00019726,2]
[315437998,1709037044019,-491.01392198,0.00019726,2]
[315437999,1709037044028,-502.85792086,0.00019726,2]
[315438000,1709037044039,-500.0,0.00019726,2]
[315438001,1709037044051,-500.0,0.00019726,2]
[315438002,1709037044061,-4417.94,0.00019726,2]
[315438003,1709037044071,-500.0,0.00019726,2]
[315438004,1709037044080,-2020.3,0.00019726,2]
[315438005,1709037044089,-500.0,0.00019726,2]
[315438006,1709037044099,-1400.15,0.00019726,2]
[315438007,1709037044107,-560.14134803,0.00019726,2]
[315438008,1709037044118,-500.0,0.00019726,2]
[315438009,1709037044128,-500.0,0.00019726,2]
[315438010,1709037044137,-584.54,0.00019726,2]
[315438011,1709037044147,-500.0,0.00019726,2]
[315438012,1709037044157,-654.62,0.00019726,2]
[315438013,1709037044167,-5040.42,0.00019726,2]
[315438014,1709037044176,-500.0,0.00019726,2]
[315438015,1709037044186,-500.0,0.00019726,2]
[315438016,1709037044195,-500.0,0.00019726,2]
[315438017,1709037044205,-500.0,0.00019726,2]
[315438018,1709037044215,-500.0,0.00019726,2]
[315438019,1709037044224,-2147.11,0.00019726,2]
[315438020,1709037044235,-502.36541284,0.00019726,2]
[315438021,1709037044243,-500.0,0.00019726,2]
[315438022,1709037044253,-500.0,0.00019726,2]
[315438023,1709037044262,-298.05466901,0.00019726,2]
[315438024,1709037044271,-262.021544,0.00019726,2]
[315438025,1709037044281,-20732.91,0.00019726,2]
[315438026,1709037044290,-500.0,0.00019726,2]
[315438027,1709037044300,-500.0,0.00019726,2]
[315438028,1709037044309,-500.0,0.00019726,2]
[315438029,1709037044319,-500.0,0.00019726,2]
[315438030,1709037044329,-183.67121497,0.00019726,2]
[315438031,1709037044338,-500.0,0.00019726,2]
[315438032,1709037044348,-500.0,0.00019726,2]
[315438033,1709037044357,-501.95643743,0.00019726,2]
[315438034,1709037044367,-500.0,0.00019726,2]
[315438035,1709037044377,-500.0,0.00019726,2]
[315438036,1709037044387,-1840.58,0.00019726,2]
[315438037,1709037044398,-500.0,0.00019726,2]
[315438038,1709037044407,-500.0,0.00019726,2]
[315438039,1709037044417,-500.0,0.00019726,2]
[315438040,1709037044427,-500.0,0.00019726,2]
[315438041,1709037044436,-500.0,0.00019726,2]
[315438042,1709037044445,-501.21301573,0.00019726,2]
[315438043,1709037044454,-3582.95,0.00019726,2]
[315438044,1709037044466,-4076.94,0.00019726,2]
[315438045,1709037044477,-1581.45,0.00019726,2]
[315438046,1709037044488,-661.79,0.00019726,2]
[315438047,1709037044498,-500.0,0.00019726,2]
[315438048,1709037044587,-1617.47,0.00019726,2]
[315438049,1709037044596,-500.0,0.00019726,2]
[315438050,1709037044606,-2645.29,0.00019726,2]
[315438051,1709037044615,-2564.92,0.00019726,2]
[315438052,1709037044625,-1501.19,0.00019726,2]
[315438053,1709037044635,-500.0,0.00019726,2]
[315438054,1709037044645,-500.0,0.00019726,2]
[315438055,1709037044654,-500.0,0.00019726,2]
[315438056,1709037044663,-7314.37,0.00019726,2]
[315438057,1709037044673,-19085.58,0.00019726,2]
[315438058,1709037044683,-941.84,0.00019726,2]
[315438059,1709037044692,-500.0,0.00019726,2]
[315438060,1709037044701,-5075.42,0.00019726,2]
[315438061,1709037044711,-773.62,0.00019726,2]
[315438062,1709037044720,-2606.31726964,0.00019768,2]
[315438063,1709037044730,-675.14685582,0.00019794,2]
[315438064,1709037044740,-838.05,0.00019899,2]
[315438065,1709037044749,-838.05,0.00019899,2]
[315438066,1709037044758,-838.05,0.00019899,2]
[315438067,1709037044768,-838.05,0.00019899,2]
[315438068,1709037044777,-838.05,0.00019899,2]
[315438069,1709037044787,-838.05,0.00019899,2]
[315438070,1709037044796,-838.05,0.00019899,2]
[315438071,1709037044805,-153396.42621625,0.000199,2]
[315438072,1709037044926,-1303.24843303,0.000199,2]